Cogmind - Beta 13 *** ADVENTURER MODE // 2024.04.16 @ 18:26:43 Player: Knightshade Result: Destroyed by HE-L5L(R) with Subdweller Machine Gun Performance ------------- Evolutions (0) 0 Regions Visited (2) 400 Robots Destroyed (32) 160 Value Destroyed (849) 849 Prototype IDs (6) 120 Alien Tech Used (0) 0 Bonus (0) 0 TOTAL SCORE: 1529 Bonus ------- None Cogmind --------- Core Integrity 0/250 Matter 8/300 Energy 249/250 System Corruption 0% Temperature Cool (9) Movement Rolling (200) Ox8 Location -10/Subcaves Parts ------- > --- POWER (1) -------- Ion Engine > --- PROPULSION (2) --- Wheel > --- UTILITY (2) ------ Huge Storage Unit > --- WEAPON (2) ------- Grenade Launcher > --- INVENTORY (25) --- Signal Interpreter ECM Suite Cobbler Unit Small Laser Small Laser Small Laser Subdweller Shrapnel Launcher Datajack Peak State ------------ > --- POWER ------------ Ion Engine > --- PROPULSION ------- Wheel Wheel > --- UTILITY ---------- Cobbler Unit > --- WEAPON ----------- Grenade Launcher Grenade Launcher > --- INVENTORY -------- Signal Interpreter ECM Suite Datajack [Rating: 9] Favorites ----------- Power Ion Engine Engine Ion Engine Propulsion Wheel Treads Light Treads Wheel Wheel Utility Huge Storage Unit Device Structural Scanner Storage Huge Storage Unit Weapon Small Laser Energy Gun Small Laser Ballistic Gun Assault Rifle Launcher Grenade Launcher Build | -11 -10 -10 ------- Run | Yrd Mat Sub Slots Evolved . | . . . Power . | . . . Propulsion . | . . . Utility . | . . . Weapon . | . . . Parts Attached 26 | 6 11 9 Power 3 | 1 1 1 Engine 3 | 1 1 1 Core . | . . . Reactor . | . . . Propulsion 7 | 2 4 1 Treads 2 | 2 . . Leg . | . . . Wheel 5 | . 4 1 Hover . | . . . Flight . | . . . Utility 6 | 1 3 2 Device 2 | . 1 1 Storage 4 | 1 2 1 Processor . | . . . Hackware . | . . . Protection . | . . . Artifact . | . . . Weapon 10 | 2 3 5 Energy Gun 4 | . 2 2 Energy Cannon . | . . . Ballistic Gun 2 | 2 . . Ballistic Cannon . | . . . Launcher 4 | . 1 3 Special Weapon . | . . . Impact Weapon . | . . . Slashing Weapon . | . . . Piercing Weapon . | . . . Special Melee Weapon . | . . . Unidentified Prototypes . | . . . Parts Lost 8 | . 3 5 Power 1 | . . 1 Propulsion 3 | . 1 2 Utility 1 | . . 1 Weapon 3 | . 2 1 Highest Loss Streak 3 | . 2 3 To Critical Strikes . | . . . Average Slot Usage (%) 87 | . 88 85 Engine 13 | . 14 13 Treads 3 | . 5 . Wheel 23 | . 22 24 Device 5 | . 4 7 Storage 13 | . 14 11 Energy Gun 11 | . 13 7 Ballistic Gun 7 | . 11 . Launcher 8 | . 1 20 Naked Turns . | . . . Heaviest Build 92 | 13 90 92 Greatest Support 40 | 40 40 20 Greatest Overweight (x) 9 | . 8 9 Average Overweight (x) 3 | . 3 3 Largest Inventory Capacity 25 | 8 25 25 Average Capacity 21 | 7 22 20 Most Carried 11 | 3 10 11 Average Carried 6 | 1 5 7 Final Capacity 25 | 8 25 25 Final Carried 9 | 2 8 9 Class Distribution -------------------- 100% | Mutant Dominant Class ---------------- Mutant | -10/Materials Mutant | -10/Subcaves Resources | -11 -10 -10 ----------- Run | Yrd Mat Sub Matter Collected 671 | 197 383 91 Remotely . | . . . Salvage Created 976 | . 801 175 Parts 71 | . 52 19 Haulers Intercepted 2 | . 2 . Recyclers Shooed . | . . . Parts Field Recycled . | . . . Retrieved Matter . | . . . Parts Self-Destructed 5 | . . 5 Prevented . | . . . Kills | -11 -10 -10 ------- Run | Yrd Mat Sub Combat Hostiles Destroyed 26 | . 18 8 Guns 20 | . 18 2 AOE 6 | . . 6 Classes Destroyed 7 | . 5 2 Worker 2 | . 2 . Hauler 2 | . 2 . Watcher 2 | . 2 . Swarmer 6 | . 6 . Grunt 12 | . 12 . Cobbler 1 | . . 1 Subdweller 8 | . . 8 Best Kill Streak 5 | . 5 3 Combat Bots Only 5 | . 5 3 Max Kills in Single Turn 2 | . 2 1 Gunslinging . | . . . Exploded 1 | . . 1 Melee . | . . . Uniques/NPCs Destroyed . | . . . Combat | -11 -10 -10 -------- Run | Yrd Mat Sub Hostile Shots Fired 128 | . 99 29 Missed 37 | . 28 9 Damage Taken 1106 | . 580 526 Core 264 | . 128 136 Absorbed by Shields . | . . . Ignored by Resistances 318 | . 187 131 Core Remaining (%) 100 | 100 . . Volleys Fired 109 | . 88 21 Largest 2 | . 2 2 Hottest 80 | . 80 80 Shots Fired 208 | . 166 42 Gun 183 | . 165 18 Cannon . | . . . Launcher 25 | . 1 24 Special . | . . . Kinetic 103 | . 103 . Thermal 80 | . 62 18 Explosive 25 | . 1 24 Electromagnetic . | . . . Robot Hit Streak 46 | . 26 46 Robot Miss Streak 3 | . 3 1 Penetration Max . | . . . Secondary Targets 1 | . 1 . Max Gunslinging Chain 1 | . 1 . Shots Hit Robots 163 | . 129 34 Core Hits 65 | . 44 21 Critical Kills . | . . . Critical Parts Destroyed . | . . . Critical Strikes . | . . . Melee Attacks . | . . . Impact . | . . . Slashing . | . . . Piercing . | . . . Sneak Attacks . | . . . Combat Hostiles . | . . . Follow-up Attacks . | . . . Damage Inflicted 2694 | . 1414 1280 Guns 1577 | . 1414 163 Cannons . | . . . Explosions 1117 | . . 1117 Melee . | . . . Ramming . | . . . Kinetic 864 | . 864 . Thermal 713 | . 550 163 Explosive 1117 | . . 1117 Electromagnetic . | . . . Impact . | . . . Slashing . | . . . Piercing . | . . . Highest Corruption . | . . . Average Corruption . | . . . Corruption Purged . | . . . Corruption Blocked . | . . . Overload Shots . | . . . Overflow Damage . | . . . Projectiles . | . . . Explosions . | . . . Melee . | . . . Knockbacks . | . . . Impact . | . . . Kinetic . | . . . Secondary . | . . . Self-Inflicted Damage 45 | . 12 33 Shots 5 | . 1 4 Rammed . | . . . Targets Rammed . | . . . Kicked . | . . . Crushed . | . . . Highest Temperature 96 | . 96 . Average Temperature 22 | . 22 . Received Heat Transfer 456 | . 321 135 Siege Activations . | . . . Robots Corrupted . | . . . Combat Hostiles . | . . . Parts Fried . | . . . Impact Corruptions . | . . . Robots Melted . | . . . Combat Hostiles . | . . . Parts Melted 1 | . 1 . Heat Transferred 1625 | . 1250 375 Parts Sabotaged . | . . . Parts Stolen . | . . . Parts Stripped . | . . . Power Chain Reactions . | . . . Alert | -11 -10 -10 ------- Run | Yrd Mat Sub Peak Influence 347 | . 347 . Initial . | . . . Average 161 | . 171 . Maximum Alert Level 1 | . 1 . Low Security (%) 59 | 100 57 . Level 1 40 | . 42 . Level 2 . | . . . Level 3 . | . . . Level 4 . | . . . Level 5 . | . . . High Security . | . . . Max Security . | . . . Squads Dispatched 2 | . 2 . Investigation 2 | . 2 . Extermination . | . . . Reinforcement . | . . . Assault . | . . . Garrison . | . . . Intercept . | . . . Searches Triggered . | . . . Construction Impeded . | . . . Haulers Reinforced . | . . . Active Scanning Responses . | . . . Cargo Convoy Interrupts . | . . . Stealth | -11 -10 -10 --------- Run | Yrd Mat Sub Distress Signals 2 | . 2 . Communications Jammed . | . . . Distress Signals . | . . . Times Spotted 39 | . 30 9 Peak Tracking Total 6 | . 6 2 Tactical Retreats 1 | . 1 . Traps | -11 -10 -10 ------- Run | Yrd Mat Sub Traps Triggered 1 | . . 1 Indirectly . | . . . Trap Hack Attempts . | . . . Triggered . | . . . Disarmed . | . . . Reprogrammed . | . . . Reused . | . . . Traps Extracted . | . . . Installed . | . . . Triggered . | . . . Machines | -11 -10 -10 ---------- Run | Yrd Mat Sub Machines Disabled 1 | . 1 . Max in Single Turn 1 | . 1 . Machines Repaired . | . . . Machines Dismantled . | . . . Machines Sabotaged . | . . . Overloaded Fab Kills . | . . . Hacking | -11 -10 -10 --------- Run | Yrd Mat Sub Machines Accessed 9 | . 9 . Terminals 7 | . 7 . Fabricators . | . . . Repair Stations . | . . . Recycling Units 2 | . 2 . Scanalyzers . | . . . Garrison Access . | . . . Total Hacks 32 | . 32 . Successful 17 | . 17 . Failed 15 | . 15 . Catastrophic . | . . . Database Lockouts . | . . . Manual 11 | . 11 . Terminals 25 | . 25 . Fabricators . | . . . Repair Stations . | . . . Recycling Units 7 | . 7 . Scanalyzers . | . . . Garrison Access . | . . . Terminal Hacks 9 | . 9 . Record 1 | . 1 . Robot Analysis 1 | . 1 . Prototype ID Bank 3 | . 3 . Branch Access Points 2 | . 2 . Locate Traps 1 | . 1 . Hauler Manifests 1 | . 1 . Fabricator Hacks . | . . . Repair Station Hacks . | . . . Recycling Unit Hacks 2 | . 2 . Retrieve Components 2 | . 2 . Scanalyzer . | . . . Garrison Access Hacks . | . . . Unauthorized Hacks 6 | . 6 . Terminals 3 | . 3 . Botnet 3 | . 3 . Fabricators . | . . . Repair Stations . | . . . Recycling Units 3 | . 3 . Monitor 1 | . 1 . Tunnel 2 | . 2 . Scanalyzers . | . . . Garrison Access . | . . . Data Cores Recovered . | . . . Used . | . . . Hacking Detections 7 | . 7 . Full Trace Events . | . . . Feedback Events . | . . . Feedback Blocked . | . . . Robot Schematics Acquired . | . . . Robots Built . | . . . Authchips . | . . . Time . | . . . Total Robot Build Rating . | . . . Part Schematics Acquired . | . . . Parts Built . | . . . Authchips . | . . . Time . | . . . Total Part Build Rating . | . . . Parts Repaired . | . . . Time . | . . . Parts Recycled . | . . . Recycled Matter . | . . . Retrieved Matter . | . . . Retrieved Components 2 | . 2 . Parts Scanalyzed . | . . . Part Schematics Acquired . | . . . Parts Damaged . | . . . Bothacking | -11 -10 -10 ------------ Run | Yrd Mat Sub Used RIF Installer . | . . . Robots Hacked . | . . . Non-combat . | . . . Combat . | . . . Robot Hacks Applied . | . . . Relay Couplers Released . | . . . Fabnet Peak Effective % . | . . . Robots Rewired . | . . . Allies Hacked . | . . . Hacks Repelled . | . . . Allies | -11 -10 -10 -------- Run | Yrd Mat Sub Total Allies . | . . . Largest Group . | . . . Highest-Rated Group . | . . . Highest-Rated Ally . | . . . Total Orders . | . . . Ally Attacks . | . . . Total Damage . | . . . Kills . | . . . Allies Corrupted . | . . . Allies Melted . | . . . Intel | -11 -10 -10 ------- Run | Yrd Mat Sub Robot Analysis Total 1 | . 1 . Derelict Logs Recovered 1 | . . 1 Drone Launches . | . . . Drone Recoveries . | . . . Exploration | -11 -10 -10 ------------- Run | Yrd Mat Sub Turns Passed 1973 | 73 1294 606 Spaces Moved 1084 | 42 662 380 Core 6 | 6 . . Treads 114 | 36 78 . Legs . | . . . Wheels 964 | . 584 380 Hover . | . . . Flight . | . . . Fastest Speed 50 | 50 135 95 Average Speed 140 | 144 143 135 Slowest Speed 320 | 160 320 215 Overloaded Moves . | . . . Propulsion Burnouts . | . . . Robots Hopped . | . . . Cave-ins Triggered . | . . . Exploration Rate (%) 40 | 4 93 23 Regions Visited 2 Branch Regions 1 Pre-discovered Areas 3 | . 2 1 Known Exits Taken . | . . . Unknown Exits Taken 2 | 1 1 . Scrap Searched . | . . . Spaces Dug 8 | . 8 . Terrain Destroyed 77 | . 8 69 Melee . | . . . Projectile . | . . . AOE 77 | . 8 69 Terrain Rammed . | . . . Walls Destroyed . | . . . Machines Disabled . | . . . Actions | -11 -10 -10 --------- Run | Yrd Mat Sub Total 1332 | 55 850 427 Wait 72 | . 68 4 Move 1082 | 41 661 380 Hop . | . . . Pick Up 31 | 8 16 7 Fast Attach . | . . . Attach 14 | 6 4 4 Detach . | . . . Swap 12 | . 7 5 Drop 12 | . 6 6 Fire 109 | . 88 21 Melee . | . . . Ram . | . . . Kick . | . . . Crush . | . . . Escape Stasis . | . . . Rewire . | . . . Trap . | . . . Miscellaneous . | . . . Route ------- -11/Scrapyard -10/Materials (discovered 5 exits: [*Mat x3] / *Min / [*Sub]) -10/Subcaves History --------- Turn | Location | Event 5 | -11/Scrapyard | Discovered new exit (range 15) 74 | -11/Scrapyard | Entered Materials 310 | -10/Materials | Build established: Mutant 445 | -10/Materials | Identified exit to Mines 544 | -10/Materials | Discovered new exit (range 12) 665 | -10/Materials | Core integrity fell below 50% 790 | -10/Materials | Discovered new exit (range 15) 1157 | -10/Materials | Discovered new exit (range 13) 1293 | -10/Materials | Discovered new exit (range 14) 1368 | -10/Materials | Entered Subcaves 1370 | -10/Subcaves | Learned location of Mines (-8) 1577 | -10/Subcaves | Core integrity fell below 20% 1607 | -10/Subcaves | Lost 3 parts (1p1n1u) 1974 | -10/Subcaves | Destroyed by HE-L5L(R) with Subdweller Machine Gun Last Messages --------------- 01674_ U4-W0C(R) destroyed. 01675_ The unstable cave ceiling collapses. 01742_ Acquired 15 matter. 01744_ Acquired 12 matter. 01759_ Dropped Sml. Laser. 01772_ Acquired 6 matter. 01778_ Dropped Huge Storage Unit. 01780_ Acquired Huge Storage Unit. 01791_ Cobbler Unit puts together Sub. Shrapnel Launcher. 01836_ Triggered Piercing Trap. 01836_ Spikes shoot up from the floor. 01836_ Critical hit (Impale). 01836_ Wheel destroyed. 01886_ Subatomizers dissect the Sml. Laser. 01899_ Dropped Cobbler Unit. 01901_ Acquired Sml. Laser. 01904_ Acquired Cobbler Unit. 01907_ Acquired Sml. Laser. 01974_ Grenade Launcher destroyed. Map ----- +----------------------------------------------------+ | ??????????# #" ## ## ### | | ????????????# ## ## ### | | ????????????### ### ## | | ??????????????## ## ## #" | | ???????????????#### # " | | ??????????????????##" # # " | | ???????????????????##" " | | ????????????????????#"" & " | | ???????????????????##" | | ???????????????????#" ## | | ???????????????????##" #### # | | ????????????????????### #?## ## " # | | ??????????????????????# #??##### "#"# ""# | | ?????????????????????## ##????##########""""" # | | ?????????????????????# "" #????######??### # | | ???????????????????### " ##???????????????###### | | ???????????????????# #?????????????????????? | | ???????????????????## #?????????????????????? | | ????????????????????## #?????????????????????? | | ?????????????????????## #?????????????????????? | | ?????????????????????## #?????????????????????? | | ?????????????????????#"" #?????????????????????? | | ?????????????????????# #?????????????????????? | | ?????????????????????# ##????????????????????? | | ??????????????# ## #????????????????????? | | ??????????????# @ ##????????????????????? | | ???????????????# #?????????????????????? | | ???????????????## #????????????????????? | | ????????????????# ???????????????????? | | ????????????????# R ??????????????????? | | ????????????????# R ?????????????????? | | ????????????????## ????????????????? | | ?????????????????## ???????????????? | | ??????????????????## ## ?????????????? | | ???????????????????# #? ????????????? | | ??????????????????? ?? ????????????? | | ??????????????????? ?? ## ????????????? | | ?????????????????? ???#?#??????????????? | | ?????????????????? ####????????????????????? | | ??????????????????? #????????????????????????? | | ????????????????????? ?????????????????????????? | | ???????????????????????????????????????????????? | | ???????????????????????????????????????????????? | | ???????????????????????????????????????????????? | | ???????????????????????????????????????????????? | | ???????????????????????????????????????????????? | | ???????????????????????????????????????????????? | | ???????????????????????????????????????????????? | | ???????????????????????????????????????????????? | | ???????????????????????????????????????????????? | +----------------------------------------------------+ Best States ------------- Heat Dissipation 25 Energy Generation 10 Energy Capacity 250 Matter Stores 300 Matter Capacity 300 Sight Range 16 Terrain Scan Density 10 Resistance: KI 20 Resistance: TH 20 Resistance: EX 20 Resistance: EM 20 Resistance: I 20 Resistance: S 20 Resistance: P 20 Evasion (%) 41 Recoil Reduction 2 Offensive Hacking 10 Item Schematics ----------------- None Robot Schematics ------------------ None Fabricated ------------ Nothing Alien Tech Used ----------------- None Achievements -------------- None Challenges ------------ None Game ------ Seed DirtyMicroPendant Manual? 0 Play Time 00:15:57 Cumulative 51.4 hours Start 2024.04.16 @ 18:14:07 End 2024.04.16 @ 18:26:43 Sessions 1 Manual Loads 0 Difficulty Adventurer Special Mode None Game No. 37 Rogue 0 Adventurer 37 Explorer 0 Win Type - Total 0 Types 0/0/0/0/0/0/0/0/0 Lore% 29 Gallery% 37 Achievement% 31 Wizard Run 0 Options --------- Layout 1 ASCII 0 Keyboard 0 Movement Mouse Keybinds 0 Fullscreen 1 Font 24/Smallcaps Map View 50x35 Zoom Use 0% Tactical HUD 1 Map Filters NONE Filters NONE Steam 1 RUN: 8cc0c49a-97e4-4a1a-95a7-cd1dd4061b37